bitfinex-derivatives/quotes_BNBF0:USTF0_20250101
["timestamp","ask_amount","ask_price","bid_price","bid_amount"]
[1735733098286,0.26003539,708.39,707.81,3.649]
[1735733098487,0.26003539,708.38,707.81,3.649]
[1735733098683,0.26003539,708.56,707.81,3.649]
[1735733098882,0.26003823,708.55,707.81,3.649]
[1735733099079,0.26003823,708.54,707.81,3.649]
[1735733099286,0.26003823,708.53,707.81,3.649]
[1735733099587,0.26003823,708.52,707.81,3.649]
[1735733099887,0.26003823,708.51,707.81,3.649]
[1735733100081,0.26003823,708.5,707.81,3.649]
[1735733100285,0.26003823,708.49,707.81,3.649]
[1735733100479,0.26003823,708.48,707.81,3.649]
[1735733100687,0.26003823,708.47,707.81,3.649]
[1735733100887,0.2600502,708.46,707.81,3.649]
[1735733101086,0.2600502,708.45,707.81,3.649]
[1735733101286,0.2600502,708.44,707.81,3.649]
[1735733101487,0.2600502,708.43,707.81,3.649]
[1735733101786,0.2600502,708.42,707.81,3.649]
[1735733102081,0.2600502,708.41,707.81,3.649]
[1735733102280,0.2600502,708.4,707.81,3.649]
[1735733102486,0.2600502,708.39,707.81,3.649]
[1735733102786,0.2600502,708.38,707.81,3.649]
[1735733102987,0.2600502,708.56,707.81,3.649]
[1735733103286,0.26007314,708.55,707.81,3.649]
[1735733103585,1.05735114,708.57,707.81,3.649]
[1735733103586,0.26007314,708.54,707.81,3.649]
[1735733103787,0.26007314,708.53,707.81,3.649]
[1735733103981,0.26007314,708.52,707.81,3.649]
[1735733104187,0.26007314,708.51,707.81,3.649]
[1735733105887,0.2600699,708.5,707.81,3.649]
[1735733106088,0.2600699,708.49,707.81,3.649]
[1735733109086,0.26006416,708.48,707.81,3.649]
[1735733109289,0.26006416,708.47,707.81,3.649]
[1735733109488,0.26006416,708.46,707.81,3.649]
[1735733109685,0.26006416,708.45,707.81,3.649]
[1735733109888,0.26006416,708.44,707.81,3.649]
[1735733110092,0.26006416,708.43,707.81,3.649]
[1735733110292,0.26006416,708.42,707.81,3.649]
[1735733110493,0.26006416,708.41,707.81,3.649]
[1735733110792,0.26006416,708.4,707.81,3.649]
[1735733110989,0.26006416,708.49,707.81,3.649]
[1735733111195,0.26006624,708.48,707.81,3.649]
[1735733111494,0.26006624,708.47,707.81,3.649]
[1735733111789,0.26006624,708.46,707.81,3.649]
[1735733111994,0.26006624,708.45,707.81,3.649]
[1735733112195,0.26006624,708.44,707.81,3.649]
[1735733112391,0.26006624,708.43,707.81,3.649]
[1735733112596,0.26006624,708.42,707.81,3.649]
[1735733112796,0.26006624,708.41,707.81,3.649]
[1735733113095,0.26006624,708.4,707.81,3.649]
[1735733113290,0.26006624,708.39,707.81,3.649]
[1735733113489,0.26006624,708.38,707.81,3.649]
[1735733113693,0.28228652,708.5,707.81,3.649]
[1735733113894,0.26006527,708.49,707.81,3.649]
[1735733115892,1.05735114,708.46,707.81,3.649]
[1735733116094,0.26006527,708.45,707.81,3.649]
[1735733116292,0.26005756,708.44,707.81,3.649]
[1735733116495,0.26005756,708.43,707.81,3.649]
[1735733116694,0.26005756,708.42,707.81,3.649]
[1735733117092,0.26006944,708.41,707.81,3.649]
[1735733117297,0.26006944,708.4,707.81,3.649]
[1735733117492,0.26006944,708.39,707.81,3.649]
[1735733117704,0.26006944,708.38,707.81,3.649]
[1735733117998,1.05735114,708.36,707.81,3.649]
[1735733118195,0.26006944,708.35,707.81,3.649]
[1735733119099,0.26006587,708.34,707.81,3.649]
[1735733121398,1.31741701,708.34,707.81,3.649]
[1735733121699,0.2600661,708.33,707.81,3.649]
[1735733122797,1.31741724,708.33,707.81,3.649]
[1735733123001,0.2600661,708.32,707.81,3.649]
[1735733125103,0.26005958,708.31,707.81,3.649]
[1735733127497,1.31741072,708.31,707.81,3.649]
[1735733127701,0.26005958,708.3,707.81,3.649]
[1735733128704,1.31741072,708.3,707.81,3.649]
[1735733128897,0.26005958,708.29,707.81,3.649]
[1735733130203,1.05735114,708.3,707.81,3.649]
[1735733131503,1.47481582,708.43,707.81,3.649]
[1735733134007,1.47481582,708.43,707.81,2.519]
[1735733135209,2.53216696,708.43,707.81,2.519]
[1735733137214,1.05735114,708.42,707.81,2.519]
[1735733138714,2.53216696,708.43,707.81,2.519]
[1735733140106,0.26007249,708.42,707.81,2.519]
[1735733141211,0.26007249,708.42,707.81,3.649]
[1735733141515,1.05735114,708.24,707.81,3.649]
[1735733142515,1.05735114,708.29,707.81,3.649]
[1735733143615,1.47481582,708.43,707.81,3.649]
[1735733143616,1.05735114,708.3,707.81,3.649]
[1735733144816,0.26008231,708.29,707.81,3.649]
[1735733146518,1.05735114,708.24,707.81,3.649]
[1735733146817,0.26008231,708.23,707.81,3.649]
[1735733147812,1.05735114,708.21,707.81,3.649]
[1735733148015,0.26008231,708.2,707.81,3.649]
[1735733148613,1.05735114,708.21,707.81,3.649]
[1735733148918,1.05735114,708.24,707.81,3.649]
[1735733149115,0.26011506,708.23,707.81,3.649]
[1735733150018,0.26011506,708.22,707.81,3.649]
[1735733150219,0.26011506,708.21,707.81,3.649]
[1735733150418,0.26011506,708.2,707.81,3.649]
[1735733150617,1.05735114,708.25,707.81,3.649]
[1735733150919,0.26011757,708.24,707.81,3.649]
[1735733151117,0.26011757,708.23,707.81,3.649]
[1735733151317,0.26011757,708.22,707.81,3.649]
[1735733151519,0.26011757,708.21,707.81,3.649]
[1735733151718,1.05735114,708.26,707.81,3.649]
[1735733151719,0.26011757,708.2,707.81,3.649]
[1735733151920,0.26011757,708.19,707.81,3.649]
[1735733152115,0.26011757,708.18,707.81,3.649]
[1735733152318,0.26011757,708.17,707.81,3.649]
[1735733152514,0.26011757,708.16,707.81,3.649]
[1735733152714,1.05735114,708.27,707.81,3.649]
[1735733152921,0.26012514,708.26,707.81,3.649]
[1735733153121,1.05735114,708.24,707.81,3.649]
[1735733153321,0.26012514,708.23,707.81,3.649]
[1735733154414,0.26012514,708.22,707.81,3.649]
[1735733154614,0.26012514,708.21,707.81,3.649]
[1735733154819,0.26012514,708.2,707.81,3.649]
[1735733155021,0.26012514,708.19,707.81,3.649]
[1735733155215,0.26012514,708.18,707.81,3.649]
[1735733157121,2.53252644,708.19,707.81,3.649]
[1735733157321,0.26012624,708.18,707.81,3.649]
[1735733158820,0.54257296,708.17,707.81,3.649]
[1735733159022,0.2601549,708.16,707.81,3.649]
[1735733159323,0.28242603,708.15,707.81,3.649]
[1735733159517,0.2601549,708.14,707.81,3.649]
[1735733161124,0.28242603,708.15,707.81,3.649]
[1735733161323,0.2601586,708.13,707.81,3.649]
[1735733161524,0.26015533,708.12,707.81,3.649]
[1735733163625,0.2601586,708.13,707.81,3.649]
[1735733163826,0.26015672,708.12,707.81,3.649]
[1735733164526,0.26015672,708.12,707.81,1.36139988]
[1735733164731,0.26015672,708.12,707.81,0.85260012]
[1735733165028,0.26015672,708.11,707.81,0.85260012]
[1735733165223,0.26015672,708.1,706.96,1.05241134]
[1735733165423,0.26015672,708.09,706.96,1.05241134]
[1735733165728,0.26015672,708.08,706.96,1.05241134]
[1735733165925,0.26015672,708.09,706.96,1.645]
[1735733166122,1.47534207,708.1,706.96,1.645]
[1735733166123,0.2601747,708.08,706.96,1.645]
[1735733166428,1.47534207,708.1,706.96,1.645]
[1735733166629,0.26017138,708.09,706.96,1.645]
[1735733169127,0.26019572,708.08,706.96,1.645]
[1735733169327,0.26019572,708.07,706.96,1.645]
[1735733169527,0.26019572,708.06,706.96,1.645]
[1735733169828,0.26019572,708.05,706.96,1.645]
[1735733170131,0.26019572,708.04,706.96,1.645]
[1735733170323,0.26019572,708.03,706.96,1.645]
[1735733170528,0.26019572,708.02,706.96,1.645]
[1735733170730,0.26019572,708.01,706.96,1.645]
[1735733170924,0.26019572,708.0,706.96,1.645]
[1735733171130,1.47534207,708.1,706.96,1.645]
[1735733171325,0.2601974,708.09,706.96,1.645]
[1735733171725,0.26019487,708.08,706.96,1.645]
[1735733171923,0.26019487,708.07,706.96,1.645]
[1735733172128,0.26019487,708.06,706.96,1.645]
[1735733172331,1.47534207,708.1,706.96,1.645]
[1735733172529,0.26019726,708.09,706.96,1.645]
[1735733174435,0.26019735,708.08,706.96,1.645]
[1735733174635,0.26019735,708.07,706.96,1.645]
[1735733174835,0.26019735,708.06,706.96,1.645]
[1735733175035,0.26019735,708.05,706.96,1.645]
[1735733175234,0.26019735,708.04,706.96,1.645]
[1735733175435,0.26019735,708.03,706.96,1.645]
[1735733175635,0.26019735,708.02,706.96,1.645]
[1735733175831,0.26019735,708.01,706.96,1.645]
[1735733176036,0.26019735,708.0,706.96,1.645]
[1735733177032,0.2601951,707.99,706.96,1.645]
[1735733177237,0.2601951,707.98,706.96,1.645]
[1735733177435,0.2601951,707.97,706.96,1.645]
[1735733177639,0.2601951,707.96,706.96,1.645]
[1735733177842,1.47585305,708.01,706.96,1.645]
[1735733177843,0.2601951,707.95,706.96,1.645]
[1735733178039,0.2601951,707.94,706.96,1.645]
[1735733178235,0.26019643,707.93,706.96,1.645]
[1735733178438,1.47585305,708.01,706.97,1.129]
[1735733178640,0.26019494,708.0,706.97,1.129]
[1735733179643,0.26019644,707.99,706.97,1.129]
[1735733179842,0.26019644,707.98,706.97,2.143]
[1735733180044,0.26019644,707.97,706.97,2.143]
[1735733180237,1.47585305,708.01,706.97,2.143]
[1735733180438,0.2601925,708.0,706.97,2.143]
[1735733182439,0.26018822,707.99,706.97,2.143]
[1735733182639,1.47585305,708.01,706.97,2.143]
[1735733182640,0.26018822,707.98,706.97,2.143]
[1735733182840,0.26018822,707.97,706.97,2.143]
[1735733183042,0.26018822,707.96,706.97,2.143]
[1735733183245,0.26018822,707.95,706.97,2.143]
[1735733183446,0.26018822,707.94,706.97,2.143]
[1735733183644,0.26018822,707.93,706.97,2.143]
[1735733183846,1.47585305,708.01,706.97,2.143]
[1735733183847,0.26018822,707.92,706.97,2.143]
[1735733184145,0.26018822,707.91,706.97,2.143]
[1735733184346,0.26018822,707.9,706.97,2.143]
[1735733184545,1.47585305,708.01,706.97,2.143]
[1735733184747,0.26019343,708.0,706.97,2.143]
[1735733187640,0.26018957,707.99,706.97,2.143]
[1735733187840,0.26018957,707.98,706.98,1.05241134]
[1735733188043,0.26018957,707.97,706.98,1.05241134]
[1735733188240,1.47585305,708.01,706.98,1.05241134]
[1735733188442,0.26018915,708.0,706.98,1.05241134]
[1735733189248,0.26018915,708.0,707.0,1.05241134]
[1735733190250,0.26018915,708.0,707.01,1.05241134]
[1735733190251,1.31754029,708.0,707.01,1.05241134]
[1735733190548,0.26018915,707.99,707.01,1.05241134]
[1735733191553,0.26018915,707.99,707.04,1.05241134]
[1735733192846,1.05735114,707.98,707.06,1.05241134]
[1735733193049,0.26018915,707.97,707.06,1.05241134]
[1735733194054,1.05735114,707.95,707.06,2.28741134]
[1735733194352,0.26018915,707.94,707.06,1.235]
[1735733195052,1.05735114,707.94,707.06,1.235]
[1735733196355,1.05735114,707.97,707.06,1.235]
[1735733196652,0.26020013,707.96,707.06,1.235]
[1735733197656,1.05735114,707.99,707.06,1.235]
[1735733197851,0.26019692,707.98,707.06,1.235]
[1735733198457,1.47585305,708.01,707.06,1.235]
[1735733198458,1.31754991,707.97,707.06,1.235]
[1735733198655,0.26019877,707.96,707.06,1.235]
[1735733199252,1.05735114,707.95,707.06,1.235]
[1735733199456,0.26019877,707.94,707.06,1.235]
[1735733199657,1.05735114,707.95,707.06,1.235]
[1735733200958,1.05735114,707.94,707.06,1.235]
[1735733202861,0.26020168,707.93,707.06,1.235]
[1735733203259,1.05735114,707.92,707.06,1.235]
[1735733204361,1.05735114,707.9,707.06,1.235]
[1735733205356,1.05735114,707.91,707.06,1.235]
[1735733207463,2.53333982,707.93,707.06,1.235]
[1735733208558,1.47598868,707.93,707.06,1.235]
[1735733215768,1.47598868,707.93,707.06,2.154]
[1735733222770,1.47598868,707.93,707.06,3.207]
[1735733223769,0.26022579,707.92,707.06,3.207]
[1735733226872,1.47598868,707.93,707.06,3.207]
[1735733227072,0.26023045,707.92,707.06,3.207]
[1735733227775,0.26023045,707.92,707.06,2.154]
[1735733228676,1.05735114,707.88,707.06,2.154]
[1735733228876,0.26023045,707.87,707.06,2.154]
[1735733229775,0.26023257,707.86,707.06,2.154]
[1735733229971,0.26023257,707.85,707.06,2.154]
[1735733230177,0.26023257,707.84,707.06,2.154]
[1735733230479,0.26023257,707.83,707.06,2.154]
[1735733230682,0.26023257,707.82,707.06,2.154]
[1735733230883,0.26023257,707.81,707.06,2.154]
[1735733231077,0.26023257,707.8,707.06,2.154]
[1735733231277,1.05735114,707.88,707.06,2.154]
[1735733231479,0.26022905,707.87,707.06,2.154]
[1735733231676,1.05735114,707.84,707.06,2.154]
[1735733231882,0.26022905,707.83,707.06,2.154]
[1735733232675,0.26022905,707.82,707.06,2.154]
[1735733232879,0.26022905,707.81,707.06,2.154]
[1735733233079,0.26022905,707.8,707.06,2.154]
[1735733233280,1.05735114,707.85,707.06,2.154]
[1735733233480,0.26023259,707.84,707.06,2.154]
[1735733234579,0.26023259,707.84,707.06,3.285]
[1735733234881,0.26023202,707.83,707.06,3.285]
[1735733235083,0.26023202,707.82,707.06,3.285]
[1735733235381,0.26023202,707.81,707.06,3.285]
[1735733235680,0.26022901,707.8,707.06,3.285]
[1735733235882,1.05735114,707.84,707.06,3.285]
[1735733237276,1.47590521,708.04,707.06,3.285]
[1735733238982,0.26020784,708.03,707.06,3.285]
[1735733239482,1.05735114,707.96,707.06,3.285]
[1735733239681,0.26020784,707.95,707.06,3.285]
[1735733240584,1.05735114,707.88,707.06,3.285]
[1735733241777,1.05735114,707.89,707.06,3.285]
[1735733242980,1.05735114,707.9,707.06,3.285]
[1735733243381,0.26022844,707.89,707.06,3.285]
[1735733243582,0.26022231,707.88,707.06,3.285]
[1735733243776,0.26022231,707.87,707.06,3.285]
[1735733243982,0.26022231,707.86,707.06,3.285]
[1735733244288,1.05735114,707.86,707.06,3.285]
[1735733245686,0.2824739,708.03,707.06,3.285]
[1735733245687,0.26023589,707.85,707.06,3.285]
[1735733245888,0.26023589,707.84,707.06,3.285]
[1735733246082,1.05735114,707.87,707.06,3.285]
[1735733246281,0.26023577,707.86,707.06,3.285]
[1735733246590,1.05735114,707.87,707.06,3.285]
[1735733246985,1.05735114,707.85,707.06,3.285]
[1735733248290,1.05735114,707.88,707.06,3.285]
[1735733249391,2.53335547,707.94,707.06,3.285]
[1735733250690,1.05735114,707.97,707.06,3.285]
[1735733251689,1.05735114,708.01,707.06,3.285]
[1735733251890,0.26019776,708.0,707.06,3.285]
[1735733253786,1.05735114,708.01,707.06,3.285]
[1735733253987,0.26018959,708.0,707.06,3.285]
[1735733254187,1.33982504,708.03,707.06,3.285]
[1735733254390,0.26018959,708.02,707.06,3.285]
[1735733256297,1.33982504,708.03,707.06,3.285]
[1735733256497,1.05735114,707.98,707.06,3.285]
[1735733256690,0.26020776,707.97,707.06,3.285]
[1735733257792,1.05735114,707.96,707.06,3.285]
[1735733257996,0.26020776,707.95,707.06,3.285]
[1735733258997,0.26020553,707.94,707.06,3.285]
[1735733259301,0.26020553,707.93,707.06,3.285]
[1735733259600,0.26020553,707.92,707.06,3.285]
[1735733259801,0.26020089,707.91,707.06,3.285]
[1735733260002,0.26020089,707.9,707.06,3.285]
[1735733260202,1.05735114,707.96,707.06,3.285]
[1735733260402,0.26021192,707.95,707.06,3.285]
[1735733261104,1.05735114,707.93,707.06,3.285]
[1735733261297,0.26021192,707.92,707.06,3.285]
[1735733261501,1.05735114,707.93,707.06,3.285]
[1735733261697,0.26021066,707.92,707.06,3.285]
[1735733262305,1.05735114,707.88,707.06,3.285]
[1735733262503,0.26021066,707.87,707.06,3.285]
[1735733263905,0.26021066,707.86,707.06,3.285]
[1735733264107,0.26021066,707.85,707.06,3.285]
[1735733264306,1.05735114,707.89,707.06,3.285]
[1735733264907,1.47588435,708.0,707.06,3.285]
[1735733271006,0.2602417,707.99,707.06,3.285]
[1735733272012,1.47588435,708.0,707.06,3.285]
[1735733272212,1.05735114,707.98,707.06,3.285]
[1735733273411,1.05735114,707.99,707.06,3.285]
[1735733274509,1.47588435,708.0,707.06,3.285]
[1735733280519,0.26021872,707.99,707.06,3.285]
[1735733281722,0.26021872,707.99,707.06,2.154]
[1735733281917,1.05735114,707.87,707.06,2.154]
[1735733282119,0.26021872,707.86,707.06,2.154]
[1735733282321,1.05735114,707.87,707.06,2.154]
[1735733283424,1.05735114,707.96,707.06,2.154]
[1735733283719,0.26021724,707.95,707.06,2.154]
[1735733285730,0.26021724,707.94,707.06,2.154]
[1735733285927,0.26021724,707.93,707.06,2.154]
[1735733286129,0.26021724,707.92,707.06,2.154]
[1735733286428,1.05735114,707.97,707.06,2.154]
[1735733286729,1.47606693,707.91,707.06,2.154]
[1735733288930,0.28252578,707.9,707.06,2.154]
[1735733289328,0.26034335,707.89,706.06,1.05241134]
[1735733289730,0.28253775,707.87,706.07,0.28325803]
[1735733289927,0.26034335,707.86,706.07,0.28325803]
[1735733290233,1.05735114,707.72,706.14,1.05241134]
[1735733290426,0.54301686,707.71,706.14,1.05241134]
[1735733290629,0.54302085,707.7,706.14,2.65441134]
[1735733290925,0.54302484,707.69,706.14,2.65441134]
[1735733291125,0.54302884,707.68,706.14,2.65441134]
[1735733291330,0.26041523,707.67,706.15,0.28322594]
[1735733291531,0.28262159,707.66,706.15,0.28322594]
[1735733291731,0.26041523,707.65,706.15,0.28322594]
[1735733291931,0.54304082,707.65,706.15,0.28322594]
[1735733292129,0.54304481,707.64,706.15,0.28322594]
[1735733292327,0.5430488,707.63,706.15,0.28322594]
[1735733292532,0.26041523,707.62,706.15,0.28322594]
[1735733293134,0.26039691,707.61,706.15,0.28322594]
[1735733293330,0.26039691,707.6,706.15,0.28322594]
[1735733293534,0.26039691,707.59,706.15,0.28322594]
[1735733293735,0.26039691,707.58,706.15,0.28322594]
[1735733293935,0.26039691,707.57,706.15,0.28322594]
[1735733294135,0.26039691,707.56,706.15,0.28322594]
[1735733294337,0.26039691,707.55,706.15,0.28322594]
[1735733294540,0.26039691,707.54,706.15,0.28322594]
[1735733294738,0.26039691,707.53,706.15,0.28322594]
[1735733294939,0.28263357,707.63,706.15,0.28322594]
[1735733295235,0.26039753,707.62,706.15,0.28322594]
[1735733295638,0.28263757,707.62,706.15,0.28322594]
[1735733295839,0.26039973,707.61,706.15,0.28322594]
[1735733296834,1.47703278,707.6,706.15,0.28322594]
[1735733297039,0.26039973,707.59,706.15,0.28322594]
[1735733298442,0.26039747,707.58,706.15,0.28322594]
[1735733298642,0.26039747,707.59,706.15,0.28322594]
[1735733298941,0.26039747,707.58,706.15,0.28322594]
[1735733299137,0.26039747,707.57,706.15,0.28322594]
[1735733299340,0.26039747,707.56,706.15,0.28322594]
[1735733299644,0.26039747,707.55,706.15,0.28322594]
[1735733299844,0.26039747,707.54,706.15,0.28322594]
[1735733300039,0.26039747,707.53,706.15,0.28322594]
[1735733300243,0.26039747,707.52,706.15,0.28322594]
[1735733300439,0.26039747,707.51,706.15,0.28322594]
[1735733300643,0.26039747,707.5,706.15,0.28322594]
[1735733300839,1.47703278,707.6,706.15,0.28322594]
[1735733301039,0.26037586,707.59,706.15,0.28322594]
[1735733305845,0.26037586,707.59,706.15,1.52822594]
[1735733306342,0.26036741,707.58,706.15,1.52822594]
[1735733306543,0.26036741,707.57,706.15,1.52822594]
[1735733306743,0.26036741,707.56,706.15,1.52822594]
[1735733306941,1.47703278,707.6,706.15,1.52822594]
[1735733306942,0.26036741,707.55,706.15,1.52822594]
[1735733307248,0.26035755,707.54,706.15,1.52822594]
[1735733307448,1.47703278,707.6,706.15,2.58063728]
[1735733307449,0.26035755,707.53,706.15,2.58063728]
[1735733307647,0.26035755,707.52,706.15,2.58063728]
[1735733307844,0.26035755,707.51,706.15,2.58063728]
[1735733308149,0.26035755,707.5,706.15,2.58063728]
[1735733308347,0.26035755,707.49,706.15,2.58063728]
[1735733308548,0.26035755,707.48,706.16,1.05241134]
[1735733308748,1.47703278,707.6,706.16,1.05241134]
[1735733308950,0.26036863,707.59,706.16,1.05241134]
[1735733309345,0.26036863,707.59,706.17,0.28321792]
[1735733310451,0.28265355,707.58,706.17,0.28321792]
[1735733312155,0.28265355,707.58,706.18,0.986]
[1735733314755,0.28265355,707.58,706.18,1.26921391]
[1735733315056,0.28265355,707.58,706.19,0.2832099]
[1735733316757,0.26041616,707.57,706.19,0.2832099]
[1735733316957,0.28266154,707.56,706.19,0.2832099]
[1735733317158,0.28266154,707.56,706.19,1.3882099]
[1735733319859,0.26042865,707.55,706.19,1.3882099]
[1735733320057,0.28266953,707.54,706.19,1.3882099]
[1735733320257,0.26042865,707.53,706.19,1.3882099]
[1735733320453,0.28267752,707.52,706.19,1.3882099]
[1735733320656,0.26042865,707.51,706.19,1.3882099]
[1735733320854,0.28268551,707.5,706.19,1.3882099]
[1735733321055,0.26042865,707.49,706.19,1.3882099]
[1735733321253,0.2826935,707.48,706.19,1.3882099]
[1735733321456,0.26042865,707.47,706.19,1.3882099]
[1735733321757,0.28270149,707.46,706.19,1.3882099]
[1735733321957,0.26042865,707.45,706.19,1.3882099]
[1735733322154,0.54313414,707.45,706.19,1.3882099]
[1735733322354,0.26042865,707.44,706.19,1.3882099]
[1735733322657,0.26044684,707.44,706.19,1.3882099]
[1735733325363,0.26044509,707.43,706.19,1.3882099]
[1735733325566,0.26044509,707.42,706.19,1.3882099]
[1735733325863,0.26044509,707.41,706.19,1.3882099]
[1735733326063,0.26044509,707.4,706.19,1.3882099]
[1735733326263,0.28270549,707.45,706.19,1.3882099]
[1735733326264,0.26044509,707.39,706.19,1.3882099]
[1735733326458,0.26044509,707.38,706.19,1.3882099]
[1735733326661,0.28270549,707.45,706.19,1.3882099]
[1735733326662,0.26044509,707.37,706.19,1.3882099]
[1735733326858,0.28270549,707.45,706.19,1.3882099]
[1735733327058,0.26043439,707.44,706.19,1.3882099]
[1735733327762,0.26043439,707.44,706.19,2.44062124]
[1735733328465,0.28271348,707.43,706.19,2.44062124]
[1735733328862,0.26045352,707.42,706.19,2.44062124]
[1735733329066,0.28272147,707.41,706.19,1.3882099]
[1735733329359,0.26045352,707.4,706.19,1.3882099]
[1735733330566,0.28272147,707.41,706.19,1.3882099]
[1735733330763,0.26045552,707.4,706.19,1.3882099]
[1735733330968,1.31780666,707.4,706.2,1.05241134]
[1735733331169,1.73779136,707.39,706.2,1.05241134]
[1735733331470,0.2604438,707.38,706.2,1.05241134]
[1735733332069,0.2604438,707.38,706.21,1.05241134]
[1735733332770,0.2604438,707.38,706.19,1.7782099]
[1735733332771,0.2604438,707.38,706.2,1.05241134]
[1735733333867,0.2604438,707.38,706.19,1.7782099]
[1735733335267,0.28272147,707.41,706.19,1.7782099]
[1735733336274,0.28272147,707.41,706.19,2.83062124]
[1735733338374,0.28272147,707.41,706.22,1.05241134]
[1735733339075,0.28272147,707.41,706.31,1.05241134]
[1735733340380,0.28272147,707.41,706.36,1.05241134]
[1735733340778,0.28272147,707.41,706.37,1.132]
[1735733341681,0.28272147,707.41,706.37,2.18441134]
[1735733342780,0.28272147,707.41,706.38,1.05241134]
[1735733344082,0.28272147,707.41,706.37,2.18]
[1735733350886,0.28272147,707.41,706.37,1.048]
[1735733354786,0.28272147,707.41,706.38,1.102]
[1735733359285,0.26040678,707.4,706.38,1.102]
[1735733361691,0.28272147,707.41,706.38,1.102]
[1735733361987,0.26040441,707.4,706.38,1.102]
[1735733362384,0.28272147,707.41,706.38,1.102]
[1735733362590,0.26040613,707.4,706.38,1.102]
[1735733364891,0.28272147,707.41,706.38,1.102]
[1735733368492,1.47713204,707.4,706.38,1.102]
[1735733369393,1.47713204,707.4,706.38,2.426]
[1735733371995,1.47713204,707.4,706.38,3.641]
[1735733374798,0.26042838,707.39,706.38,3.641]
[1735733375301,1.47713204,707.4,706.38,3.641]
[1735733376601,0.26042461,707.39,706.38,3.641]
[1735733377801,0.26042446,707.38,706.38,3.641]
[1735733377997,0.26042446,707.37,706.38,3.641]
[1735733378197,0.26042446,707.36,706.38,3.641]
[1735733378397,0.26042446,707.35,706.38,3.641]
[1735733378702,0.26043008,707.34,706.38,3.641]
[1735733378903,0.26043008,707.33,706.38,3.641]
[1735733379103,0.26043008,707.32,706.38,3.641]
[1735733379304,0.26043008,707.31,706.38,3.641]
[1735733379499,0.26043008,707.3,706.38,3.641]
[1735733379704,1.47713204,707.4,706.38,3.641]
[1735733379901,0.26043737,707.39,706.38,3.641]
[1735733381808,0.26043737,707.39,706.38,2.539]
[1735733383007,0.26043737,707.39,706.39,1.126]
[1735733383208,1.47713204,707.4,706.39,1.126]
[1735733383408,0.26045113,707.39,706.39,1.126]
[1735733383912,1.05735114,707.38,706.39,1.126]
[1735733384109,0.26045113,707.37,706.39,1.126]
[1735733385107,0.26045113,707.36,706.39,1.126]
[1735733385307,0.26045113,707.35,706.39,1.126]
[1735733385505,1.47713204,707.4,706.39,1.126]
[1735733385506,0.26045113,707.34,706.39,1.126]
[1735733385709,0.26045113,707.33,706.39,1.126]
[1735733385915,1.47713204,707.4,706.39,1.126]
[1735733385916,0.26045113,707.32,706.39,1.126]
[1735733386213,0.26045113,707.31,706.39,1.126]
[1735733386405,1.05735114,707.38,706.39,1.126]
[1735733386406,0.26045113,707.3,706.39,1.126]
[1735733386610,0.26045013,707.29,706.39,1.126]
[1735733386909,1.05735114,707.38,706.39,1.126]
[1735733386910,0.26045013,707.28,706.39,1.126]
[1735733387112,0.26045013,707.27,706.39,1.126]
[1735733387414,0.26045013,707.26,706.39,1.126]
[1735733387715,0.26045013,707.25,706.39,1.126]
[1735733387913,0.26045013,707.24,706.39,1.126]
[1735733388115,1.05735114,707.33,706.39,1.126]
[1735733388116,0.26045013,707.23,706.39,1.126]
[1735733388310,0.26045013,707.22,706.39,1.126]
[1735733388513,0.26045013,707.21,706.39,1.126]
[1735733388708,0.26045301,707.2,706.39,1.126]
[1735733388909,0.26045301,707.19,706.39,1.126]
[1735733389114,0.26045301,707.18,706.39,1.126]
[1735733389314,1.05735114,707.32,706.39,1.126]
[1735733389516,0.26045217,707.31,706.39,1.126]
[1735733389913,1.31780331,707.31,706.39,1.126]
[1735733390112,0.26045217,707.3,706.39,1.126]
[1735733390511,0.26045217,707.3,706.39,2.62]
[1735733391208,1.05735114,707.29,706.39,2.62]
[1735733391513,0.26045355,707.28,706.39,2.62]